bitfinex-derivatives/quotes_BTCF0:USTF0_20241217
["timestamp","ask_amount","ask_price","bid_price","bid_amount"]
[1734444557198,0.55610078,107440.0,107430.0,0.04661964]
[1734444557595,0.55610078,107440.0,107430.0,7.864e-05]
[1734444558603,0.55610078,107440.0,107430.0,0.04662264]
[1734444558911,0.42650626,107440.0,107430.0,0.04662264]
[1734444559211,0.00010626,107440.0,107430.0,0.12967816]
[1734444559507,0.00010626,107440.0,107430.0,0.25927816]
[1734444559913,0.00084626,107440.0,107430.0,0.62007816]
[1734444561809,0.00084626,107440.0,107430.0,0.53405139]
[1734444562010,0.00084626,107440.0,107430.0,0.58059539]
[1734444562401,0.00084626,107440.0,107430.0,0.58931687]
[1734444562600,0.00084626,107440.0,107430.0,0.67237239]
[1734444562802,0.00084626,107440.0,107430.0,0.58940517]
[1734444563202,0.00084626,107440.0,107430.0,0.88940517]
[1734444563407,0.471729,107470.0,107460.0,0.046531]
[1734444564017,0.57037142,107470.0,107460.0,0.046531]
[1734444564410,0.5704895,107470.0,107460.0,0.046531]
[1734444567018,0.5239605,107470.0,107460.0,0.046531]
[1734444567507,0.2096865,107470.0,107460.0,0.046531]
[1734444567817,0.5704865,107470.0,107460.0,0.046531]
[1734444568114,0.046531,107460.0,107450.0,0.046533]
[1734444568302,0.55608652,107460.0,107450.0,0.046533]
[1734444568502,0.63914204,107460.0,107450.0,0.046533]
[1734444568808,0.63914204,107460.0,107430.0,0.0931713]
[1734444569004,0.470735,107450.0,107440.0,0.046538]
[1734444570220,0.4242,107450.0,107440.0,0.046538]
[1734444571819,0.50725552,107450.0,107440.0,0.046538]
[1734444572621,0.4242,107450.0,107440.0,0.046538]
[1734444572813,0.0634,107450.0,107440.0,0.046538]
[1734444573011,0.50955552,107460.0,107450.0,0.046535]
[1734444574217,0.63914204,107460.0,107440.0,0.046537]
[1734444574424,0.49039052,107450.0,107440.0,0.046537]
[1734444577219,0.62289052,107450.0,107440.0,0.046537]
[1734444582011,0.57635552,107450.0,107440.0,0.046537]
[1734444582622,0.62289052,107450.0,107440.0,0.046537]
[1734444584020,0.6368964,107450.0,107440.0,0.046537]
[1734444585221,0.5903614,107450.0,107440.0,0.046537]
[1734444585421,0.2295614,107450.0,107440.0,0.046537]
[1734444586625,0.5903614,107450.0,107440.0,0.046537]
[1734444587422,0.6368964,107450.0,107440.0,0.046537]
[1734444589037,0.65524901,107450.0,107440.0,0.046537]
[1734444591334,0.65524901,107450.0,107440.0,0.05525848]
[1734444592027,0.65524901,107450.0,107440.0,0.00872148]
[1734444592227,0.65524901,107450.0,107440.0,0.046539]
[1734444602140,0.62676258,107450.0,107440.0,0.046539]
[1734444604036,0.62676258,107450.0,107440.0,0.05526048]
[1734444604946,0.57676258,107450.0,107440.0,0.05526048]
[1734444605125,0.57676258,107450.0,107440.0,0.046539]
[1734444606033,0.55966258,107450.0,107440.0,0.046539]
[1734444608338,0.51312758,107450.0,107440.0,0.046539]
[1734444608747,0.44772758,107450.0,107440.0,0.046539]
[1734444608944,0.39315849,107450.0,107440.0,0.046539]
[1734444609142,0.44772758,107450.0,107440.0,0.046539]
[1734444609945,0.3608,107450.0,107440.0,0.10110809]
[1734444610545,0.3608,107460.0,107450.0,0.046535]
[1734444610742,0.41536909,107460.0,107450.0,0.177835]
[1734444612148,0.3608,107460.0,107450.0,0.177835]
[1734444612350,0.44392592,107460.0,107450.0,0.177835]
[1734444614549,0.44392592,107460.0,107450.0,0.046535]
[1734444614749,0.50752592,107460.0,107450.0,0.046535]
[1734444618143,0.59065184,107460.0,107450.0,0.046535]
[1734444618353,0.63718284,107460.0,107450.0,0.046535]
[1734444618552,0.70458284,107460.0,107450.0,0.046535]
[1734444618864,0.046535,107450.0,107440.0,0.046539]
[1734444619068,0.046539,107440.0,107430.0,0.0466293]
[1734444619357,0.62286492,107440.0,107430.0,8.83e-05]
[1734444621249,0.046548,107420.0,107410.0,0.05527506]
[1734444621456,0.49047392,107420.0,107410.0,0.05527506]
[1734444621956,0.62007392,107420.0,107410.0,0.046551]
[1734444622157,0.62007392,107420.0,107410.0,0.05527506]
[1734444622461,0.62007392,107420.0,107410.0,0.046551]
[1734444624754,0.57352592,107420.0,107410.0,0.046551]
[1734444625945,0.21272592,107420.0,107410.0,0.046551]
[1734444626159,0.57352592,107420.0,107410.0,0.046551]
[1734444626359,0.58688293,107420.0,107410.0,0.046551]
[1734444627746,0.63343093,107420.0,107400.0,0.10007122]
[1734444627954,0.63343093,107420.0,107400.0,0.14662622]
[1734444627955,0.44392592,107410.0,107400.0,0.14662622]
[1734444628163,0.4440175,107410.0,107400.0,0.14662622]
[1734444629255,0.5589695,107410.0,107400.0,0.14662622]
[1734444630157,0.5124175,107410.0,107400.0,0.14662622]
[1734444630853,0.36089158,107410.0,107400.0,0.14662622]
[1734444632256,0.4440175,107410.0,107400.0,0.14662622]
[1734444635061,0.36089158,107410.0,107400.0,0.14662622]
[1734444636664,9.158e-05,107410.0,107400.0,0.59055214]
[1734444636856,9.158e-05,107410.0,107400.0,0.51615028]
[1734444637860,9.158e-05,107410.0,107400.0,0.15535028]
[1734444638455,9.158e-05,107410.0,107400.0,0.14662622]
[1734444641262,9.158e-05,107410.0,107400.0,0.15886072]
[1734444643967,0.05468838,107410.0,107400.0,0.15886072]
[1734444644656,0.05468838,107410.0,107400.0,0.57425752]
[1734444644857,9.158e-05,107410.0,107400.0,0.57425752]
[1734444645155,9.158e-05,107410.0,107400.0,0.21345752]
[1734444645457,0.05468838,107410.0,107400.0,0.16758478]
[1734444645656,0.05468838,107410.0,107400.0,0.15886072]
[1734444647874,0.10124038,107410.0,107400.0,0.14662622]
[1734444648365,0.51663718,107410.0,107400.0,0.14662622]
[1734444648556,0.58163718,107410.0,107400.0,0.14662622]
[1734444648752,0.52704038,107410.0,107400.0,0.14662622]
[1734444649359,0.58163718,107410.0,107400.0,0.10879528]
[1734444649762,0.58163718,107410.0,107400.0,0.08611706]
[1734444650064,0.55568205,107410.0,107400.0,0.077393]
[1734444650264,0.55568205,107410.0,107400.0,0.08611706]
[1734444651069,0.55568205,107410.0,107400.0,0.077393]
[1734444652262,0.63892052,107410.0,107400.0,0.08611706]
[1734444652472,0.55568205,107410.0,107400.0,0.08611706]
[1734444652861,0.63892052,107410.0,107400.0,0.08611706]
[1734444653665,0.046557,107400.0,107390.0,0.04656]
[1734444653861,0.63843394,107400.0,107390.0,0.04656]
[1734444654068,0.63843394,107400.0,107370.0,0.24389277]
[1734444654265,0.44403847,107390.0,107380.0,0.046565]
[1734444656357,0.49059947,107390.0,107380.0,0.046565]
[1734444656866,0.61899947,107390.0,107380.0,0.046565]
[1734444657064,0.61899947,107390.0,107370.0,8.972e-05]
[1734444657263,0.51013847,107380.0,107370.0,0.04665772]
[1734444661171,0.4269,107380.0,107370.0,0.04665772]
[1734444661475,0.0661,107380.0,107370.0,0.04665772]
[1734444661657,0.4269,107380.0,107370.0,0.04665772]
[1734444661861,0.0661,107380.0,107370.0,0.04665772]
[1734444662070,0.4269,107380.0,107370.0,0.04665772]
[1734444663369,0.0661,107380.0,107370.0,0.04665772]
[1734444663572,0.0661,107380.0,107370.0,0.05538622]
[1734444663767,0.4269,107380.0,107370.0,0.04665772]
[1734444664165,0.14933847,107380.0,107370.0,0.04665772]
[1734444664673,0.51013847,107380.0,107370.0,0.04665772]
[1734444665461,0.14933847,107380.0,107370.0,0.04665772]
[1734444665876,0.51013847,107380.0,107370.0,0.04665772]
[1734444669178,0.52013847,107380.0,107370.0,0.04665772]
[1734444669672,0.4369,107380.0,107370.0,0.04665772]
[1734444669876,0.01,107380.0,107370.0,0.04665772]
[1734444670080,0.01,107380.0,107370.0,0.11000167]
[1734444670371,0.3608,107400.0,107390.0,0.046561]
[1734444670579,0.3608,107400.0,107390.0,0.10117645]
[1734444670772,0.3608,107400.0,107390.0,0.10990495]
[1734444671570,0.43414198,107410.0,107400.0,0.046557]
[1734444671875,0.43414198,107410.0,107400.0,0.0552855]
[1734444672181,0.46273525,107410.0,107400.0,0.0552855]
[1734444675771,0.46273525,107410.0,107400.0,0.046557]
[1734444676375,0.41273525,107410.0,107400.0,0.046557]
[1734444677272,0.4594026,107410.0,107400.0,0.046557]
[1734444677467,0.5941026,107410.0,107400.0,0.046557]
[1734444677677,0.5941026,107410.0,107400.0,0.0552855]
[1734444678677,0.5941026,107410.0,107400.0,0.046557]
[1734444682374,0.5475506,107410.0,107400.0,0.046557]
[1734444688279,0.5941026,107410.0,107400.0,0.046557]
[1734444689890,0.046557,107400.0,107390.0,0.04656]
[1734444690191,0.63667444,107400.0,107390.0,0.046561]
[1734444692294,0.57952192,107400.0,107390.0,0.046561]
[1734444693587,0.94032192,107400.0,107390.0,0.046561]
[1734444696404,0.046561,107390.0,107380.0,0.046565]
[1734444696585,0.53376492,107390.0,107380.0,0.046565]
[1734444696904,0.47913246,107390.0,107380.0,0.046565]
[1734444697093,0.3608,107390.0,107380.0,0.046565]
[1734444697294,0.41543246,107390.0,107380.0,0.046565]
[1734444699901,0.43531902,107400.0,107380.0,0.10992596]
[1734444700206,0.12915148,107400.0,107390.0,0.046561]
[1734444700499,0.01161902,107400.0,107390.0,0.0552895]
[1734444700800,0.77810276,107410.0,107400.0,0.046557]
[1734444701005,0.77810276,107410.0,107400.0,0.1227855]
[1734444702495,0.44571603,107410.0,107400.0,0.114057]
[1734444702805,0.43418276,107410.0,107400.0,0.114057]
[1734444704697,0.07338276,107410.0,107400.0,0.114057]
[1734444705196,0.44551297,107410.0,107400.0,0.114057]
[1734444705898,0.08471297,107410.0,107400.0,0.114057]
[1734444706999,0.44551297,107410.0,107400.0,0.114057]
[1734444707201,0.08471297,107410.0,107400.0,0.114057]
[1734444707409,0.08471297,107410.0,107400.0,0.239557]
[1734444708108,0.08471297,107410.0,107400.0,0.2482855]
[1734444708908,0.08471297,107410.0,107400.0,0.239557]
[1734444711300,0.08471297,107410.0,107400.0,0.2482855]
[1734444711620,0.08471297,107410.0,107400.0,0.239557]
[1734444712307,0.06607802,107410.0,107400.0,0.239557]
[1734444714314,0.06607802,107410.0,107400.0,0.2482855]
[1734444716504,0.42687802,107410.0,107400.0,0.2482855]
[1734444716703,0.06607802,107410.0,107400.0,0.2482855]
[1734444716915,0.06607802,107410.0,107400.0,0.239557]
[1734444720018,0.06607802,107410.0,107400.0,0.2482855]
[1734444720904,0.06607802,107410.0,107400.0,0.600357]
[1734444720905,0.05474781,107410.0,107400.0,0.600357]
[1734444721107,0.00011535,107410.0,107400.0,0.65498946]
[1734444721305,0.00011535,107410.0,107400.0,0.66371796]
[1734444721505,0.05463246,107420.0,107410.0,0.046552]
[1734444721809,0.05463246,107420.0,107410.0,0.0552805]
[1734444722012,0.05463246,107420.0,107410.0,0.4160805]
[1734444722414,0.05472021,107420.0,107410.0,0.4160805]
[1734444722918,0.05472021,107420.0,107410.0,0.47071296]
[1734444722919,8.775e-05,107420.0,107410.0,0.47071296]
[1734444723313,7.5e-07,107420.0,107410.0,0.82534542]
[1734444723516,7.5e-07,107420.0,107410.0,0.77071296]
[1734444724013,0.05463246,107440.0,107430.0,0.046544]
[1734444724211,0.05463246,107440.0,107430.0,0.0552725]
[1734444724919,0.05470608,107440.0,107430.0,0.0552725]
[1734444725111,0.05470608,107440.0,107430.0,0.046544]
[1734444727530,7.362e-05,107440.0,107430.0,0.046544]
[1734444727832,0.05470608,107440.0,107430.0,0.046544]
[1734444729331,0.05470608,107440.0,107430.0,0.407344]
[1734444734126,0.10933854,107440.0,107430.0,0.407344]
[1734444734328,0.17293854,107440.0,107430.0,0.407344]
[1734444735443,0.11830608,107440.0,107430.0,0.407344]
[1734444737041,0.0636,107440.0,107430.0,0.407344]
[1734444737244,0.11823246,107440.0,107430.0,0.407344]
[1734444738139,0.11831325,107440.0,107430.0,0.407344]
[1734444743727,8.079e-05,107440.0,107430.0,0.46197646]
[1734444743933,8.079e-05,107440.0,107430.0,0.47070496]
[1734444745150,8.079e-05,107440.0,107430.0,0.46197646]
[1734444746626,7.9e-07,107440.0,107430.0,0.46197646]
[1734444746828,7.9e-07,107440.0,107430.0,0.81660892]
[1734444747131,0.4276,107480.0,107470.0,0.046526]
[1734444747440,0.0668,107480.0,107470.0,0.10115846]
[1734444747745,0.0668,107480.0,107470.0,0.046526]
[1734444747947,0.06689685,107480.0,107470.0,0.10127059]
[1734444748245,0.12152931,107480.0,107470.0,0.04663813]
[1734444751634,0.48232931,107480.0,107470.0,0.04663813]
[1734444751835,0.58348377,107480.0,107470.0,0.04663813]
[1734444753140,0.53696177,107480.0,107470.0,0.04663813]
[1734444754348,0.48232931,107480.0,107470.0,0.04663813]
[1734444755148,0.42769685,107480.0,107470.0,0.04663813]
[1734444755446,0.48232931,107480.0,107470.0,0.04663813]
[1734444755845,0.12152931,107480.0,107470.0,0.04663813]
[1734444756044,0.06689685,107480.0,107470.0,0.04663813]
[1734444756548,0.14999494,107480.0,107470.0,0.04663813]
[1734444757241,0.06689685,107480.0,107470.0,0.04663813]
[1734444757752,0.14999494,107480.0,107470.0,0.04663813]
[1734444759450,0.51079494,107480.0,107470.0,0.04663813]
[1734444761949,0.42769685,107480.0,107470.0,0.04663813]
[1734444762143,0.06689685,107480.0,107470.0,0.04663813]
[1734444765445,0.14999494,107480.0,107470.0,0.04663813]
[1734444766757,0.51079494,107480.0,107470.0,0.04663813]
[1734444768254,0.14999494,107480.0,107470.0,0.04663813]
[1734444770147,0.06689685,107480.0,107460.0,0.42284988]
[1734444770347,0.06689685,107480.0,107470.0,0.046526]
[1734444771247,0.06689685,107480.0,107470.0,0.0466302]
[1734444772458,9.685e-05,107480.0,107470.0,0.0466302]
[1734444772653,9.685e-05,107480.0,107470.0,0.1098302]
[1734444773558,0.06669685,107480.0,107470.0,0.1098302]
[1734444775255,0.06669685,107480.0,107470.0,0.11855047]
[1734444777955,0.06669685,107480.0,107470.0,0.12921662]
[1734444779048,0.06669685,107480.0,107470.0,0.18374392]
[1734444779455,0.06669685,107480.0,107470.0,0.54454392]
[1734444780566,9.685e-05,107480.0,107470.0,0.54454392]
[1734444781850,9.685e-05,107480.0,107470.0,0.18374392]
[1734444782763,9.685e-05,107480.0,107470.0,0.54454392]
[1734444782960,0.15114354,107490.0,107480.0,0.046522]
[1734444783266,0.15114354,107490.0,107480.0,0.05524227]
[1734444783968,0.15125553,107490.0,107480.0,0.05524227]
[1734444787353,0.51205553,107490.0,107480.0,0.05524227]
[1734444787558,0.15125553,107490.0,107480.0,0.05524227]
[1734444787762,0.51205553,107490.0,107480.0,0.05524227]
[1734444791470,0.51205553,107490.0,107480.0,0.046522]
[1734444793071,0.09672823,107490.0,107480.0,0.1010493]
[1734444793268,0.15125553,107490.0,107480.0,0.05524227]
[1734444793473,0.15125553,107490.0,107470.0,0.41500857]
[1734444793775,0.51205553,107490.0,107480.0,0.046522]
[1734444794375,0.51205553,107490.0,107480.0,0.04662314]
[1734444795864,0.15125553,107490.0,107480.0,0.04662314]
[1734444796176,0.51205553,107490.0,107480.0,0.04662314]
[1734444797269,0.15125553,107490.0,107480.0,0.04662314]
[1734444798378,0.51205553,107490.0,107480.0,0.04662314]
[1734444800473,0.15125553,107490.0,107480.0,0.04662314]
[1734444801180,0.51205553,107490.0,107480.0,0.04662314]
[1734444804582,0.51205553,107490.0,107470.0,0.11137741]
[1734444804781,0.0628,107480.0,107470.0,0.11137741]
[1734444804982,0.0628,107480.0,107470.0,0.12009714]
[1734444805293,0.1173273,107480.0,107470.0,0.06556984]
[1734444805584,0.1173273,107480.0,107470.0,0.06566932]
[1734444805978,0.1173273,107480.0,107470.0,0.42646932]
[1734444806283,0.0628,107480.0,107470.0,0.42646932]
[1734444809197,0.1173273,107480.0,107470.0,0.41774959]
[1734444810591,0.1173273,107480.0,107470.0,0.42646932]
[1734444810793,0.1173273,107480.0,107470.0,0.41774959]
[1734444810986,0.1173273,107480.0,107470.0,0.42646932]
[1734444812289,0.0628,107480.0,107470.0,0.41774959]
[1734444812794,0.1173273,107480.0,107470.0,0.41774959]
[1734444812984,0.0628,107480.0,107470.0,0.41774959]
[1734444813184,0.01101926,107490.0,107480.0,0.046522]
[1734444813397,0.01101926,107490.0,107480.0,0.5788766]
[1734444813784,0.01101926,107490.0,107480.0,0.5243493]
[1734444814392,0.00011199,107490.0,107480.0,0.5788766]
[1734444814585,0.00011199,107490.0,107480.0,0.5243493]
[1734444814785,0.00011199,107490.0,107480.0,0.1635493]
[1734444818298,0.00011199,107490.0,107480.0,0.1010493]
[1734444818799,0.00011199,107490.0,107480.0,0.4618493]
[1734444820393,0.00011199,107490.0,107480.0,0.5163766]
[1734444820786,0.00011199,107490.0,107480.0,0.4618493]
[1734444820999,0.00011199,107490.0,107480.0,0.5163766]
[1734444822294,0.00011199,107490.0,107480.0,0.52509633]
[1734444823098,0.1,107500.0,107480.0,0.52509633]
[1734444823298,0.1,107500.0,107490.0,0.4618453]
[1734444823499,0.1,107500.0,107490.0,0.47056503]
[1734444824106,0.10006828,107500.0,107490.0,0.47056503]
[1734444824599,0.10006828,107500.0,107490.0,0.4618453]
[1734444824803,0.10006828,107500.0,107490.0,0.47056503]
[1734444824991,0.10006828,107500.0,107490.0,0.4618453]
[1734444825393,0.10006828,107500.0,107490.0,0.60436503]
[1734444825594,0.10006828,107500.0,107490.0,0.5956453]
[1734444826503,0.15459558,107500.0,107490.0,0.5956453]
[1734444826891,0.10006828,107500.0,107490.0,0.5956453]
[1734444827611,0.15459558,107500.0,107490.0,0.407318]
[1734444830113,0.15459558,107500.0,107490.0,0.046518]
[1734444832316,0.15459558,107500.0,107490.0,0.06261815]
[1734444835116,0.10006828,107500.0,107490.0,0.11714545]
[1734444835514,0.10006828,107500.0,107490.0,0.12586518]
[1734444835705,0.10006828,107500.0,107490.0,0.11714545]
[1734444836715,0.15459558,107500.0,107490.0,0.06261815]
[1734444836915,0.15459558,107500.0,107490.0,0.42341815]
[1734444837808,0.15459558,107500.0,107490.0,0.43213788]
[1734444839018,0.10006828,107500.0,107490.0,0.43213788]
[1734444839223,0.15459558,107500.0,107490.0,0.43213788]
[1734444841720,0.61643588,107500.0,107490.0,0.07133788]
[1734444841910,0.67983588,107500.0,107490.0,0.06261815]
[1734444842109,0.67983588,107500.0,107490.0,0.07133788]
[1734444842509,0.67983588,107500.0,107480.0,0.05524173]
[1734444842705,0.1211273,107490.0,107480.0,0.05524173]
[1734444843122,0.4819273,107490.0,107480.0,0.05524173]
[1734444843421,0.4819273,107490.0,107480.0,0.046522]
[1734444843622,0.5284453,107490.0,107480.0,0.046522]
[1734444844422,0.4819273,107490.0,107480.0,0.046522]
[1734444845824,0.5497273,107490.0,107480.0,0.046522]
[1734444846921,0.5497273,107490.0,107470.0,0.0545273]
[1734444847120,0.5497273,107490.0,107480.0,0.046522]
[1734444847513,0.5962453,107490.0,107480.0,0.046522]
[1734444847714,0.6507726,107490.0,107480.0,0.046522]
[1734444849722,0.046522,107480.0,107470.0,0.04659296]
[1734444849930,0.5872819,107480.0,107460.0,0.06304793]
[1734444850119,0.6468806,107470.0,107460.0,0.06304793]
[1734444850618,0.6468806,107470.0,107460.0,0.046529]
[1734444853213,0.5923533,107470.0,107460.0,0.046529]
[1734444853829,0.5458273,107470.0,107460.0,0.046529]
[1734444854125,0.4913,107470.0,107460.0,0.1010563]
[1734444854424,0.3608,107480.0,107470.0,0.046526]
[1734444854615,0.3608,107480.0,107470.0,0.1010533]
[1734444855227,0.50681305,107490.0,107480.0,0.046522]
[1734444855228,0.4881,107490.0,107480.0,0.046522]
[1734444855423,0.4881,107490.0,107480.0,0.1010493]
[1734444855616,0.5426273,107490.0,107480.0,0.046522]
[1734444858217,0.6436726,107490.0,107480.0,0.046522]
[1734444858727,0.5891453,107490.0,107480.0,0.046522]
[1734444871734,0.6436726,107490.0,107480.0,0.046522]
[1734444871927,0.5891453,107490.0,107480.0,0.046522]
[1734444872323,0.046524,107480.0,107470.0,0.05524573]
[1734444872537,0.046529,107470.0,107460.0,0.04653]
[1734444872834,0.6441836,107470.0,107460.0,0.04653]
[1734444873035,0.5896563,107470.0,107460.0,0.04653]
[1734444873236,0.6441836,107470.0,107460.0,0.04653]
[1734444873423,0.5896563,107470.0,107460.0,0.04653]
[1734444875032,0.6441836,107470.0,107460.0,0.04653]
[1734444875227,0.046531,107460.0,107450.0,0.04660083]
[1734444875432,0.5163856,107460.0,107450.0,0.04660083]
[1734444877538,0.45242016,107460.0,107450.0,0.08730622]
[1734444877741,0.49895116,107460.0,107450.0,0.08730622]
[1734444878039,0.44661565,107460.0,107450.0,0.08730622]
[1734444878541,0.44661565,107460.0,107450.0,0.04660083]
[1734444879731,0.40008465,107460.0,107450.0,0.04660083]
[1734444880230,0.34555735,107460.0,107450.0,0.04660083]
[1734444880727,0.0545273,107460.0,107450.0,0.04660083]
[1734444881134,0.4153273,107460.0,107450.0,0.04660083]
[1734444882338,0.55009269,107470.0,107450.0,0.04660083]
[1734444882339,0.01496569,107470.0,107460.0,0.046531]
[1734444882549,0.0545273,107470.0,107460.0,0.046531]
[1734444882843,0.4153273,107470.0,107460.0,0.046531]
[1734444883842,0.43423557,107470.0,107460.0,0.046531]
[1734444884839,0.37970827,107470.0,107460.0,0.046531]
[1734444885042,0.3608,107470.0,107460.0,0.1010583]
[1734444885247,0.3608,107470.0,107460.0,0.2286583]
[1734444885935,0.53635288,107480.0,107470.0,0.046526]
[1734444886136,0.53583287,107480.0,107470.0,0.046526]
[1734444886331,0.13766557,107480.0,107470.0,0.1010533]
[1734444886638,0.4153273,107490.0,107480.0,0.046522]
[1734444887740,0.43392611,107490.0,107480.0,0.046522]
[1734444887941,0.07312611,107490.0,107480.0,0.046522]
[1734444888144,0.01859881,107490.0,107480.0,0.046522]
[1734444888351,0.07312611,107490.0,107480.0,0.046522]
[1734444889941,0.01859881,107490.0,107480.0,0.046522]
[1734444894451,0.50900074,107490.0,107480.0,0.046522]
[1734444894653,0.52848274,107490.0,107480.0,0.046522]
[1734444894855,0.16768274,107490.0,107480.0,0.046522]
[1734444896655,0.52848274,107490.0,107480.0,0.046522]
[1734444898749,0.57500074,107490.0,107480.0,0.046522]
[1734444901052,0.57500074,107490.0,107460.0,0.51212596]
[1734444901254,0.0625,107480.0,107470.0,0.046526]
[1734444902549,0.55290593,107480.0,107470.0,0.046526]
[1734444902753,0.61680593,107480.0,107470.0,0.046526]
[1734444904450,0.4872,107480.0,107470.0,0.046526]
[1734444905150,0.1264,107480.0,107470.0,0.046526]
[1734444908462,0.4872,107480.0,107470.0,0.046526]
[1734444908752,0.1264,107480.0,107470.0,0.046526]
[1734444908956,0.4872,107480.0,107470.0,0.046526]
[1734444909658,0.57028393,107480.0,107470.0,0.046526]
[1734444910357,0.50572068,107480.0,107470.0,0.046526]
[1734444912051,0.56025381,107480.0,107470.0,0.046526]
[1734444912957,0.4233,107480.0,107470.0,0.046526]
[1734444913153,0.47783313,107480.0,107470.0,0.046526]
[1734444915657,0.0625,107480.0,107470.0,0.46185913]
[1734444915865,0.0625,107480.0,107470.0,0.10105913]
[1734444916065,0.0625,107480.0,107470.0,0.046526]
[1734444917472,0.0625,107480.0,107470.0,0.407326]
[1734444918269,0.11703313,107480.0,107470.0,0.407326]
[1734444918470,0.16355513,107480.0,107470.0,0.407326]
[1734444918671,0.11703313,107480.0,107470.0,0.407326]
[1734444918870,0.0625,107480.0,107470.0,0.407326]
[1734444919580,0.0625,107480.0,107470.0,0.046526]
[1734444924671,0.0625,107480.0,107470.0,0.06367906]
[1734444926279,0.11703313,107480.0,107470.0,0.046526]
[1734444926985,0.16355513,107480.0,107470.0,0.046526]
[1734444927572,0.11703313,107480.0,107470.0,0.046526]
[1734444932089,0.0625,107480.0,107470.0,0.046526]
[1734444932384,0.0625,107480.0,107470.0,0.10105913]
[1734444932786,0.3608,107490.0,107480.0,0.046522]
[1734444932984,0.52306828,107500.0,107490.0,0.046518]
[1734444933175,0.16226828,107500.0,107490.0,0.10105113]
[1734444933786,0.16226828,107500.0,107490.0,0.16575113]
[1734444934282,0.16226828,107500.0,107490.0,0.17446963]
[1734444935088,0.21680141,107500.0,107490.0,0.1199365]
[1734444935288,0.21680141,107500.0,107490.0,0.111218]
[1734444937786,0.62411441,107500.0,107490.0,0.046518]
[1734444938880,0.57760141,107500.0,107490.0,0.046518]
[1734444939077,0.57760141,107500.0,107490.0,0.10105113]
[1734444939392,0.52306828,107500.0,107490.0,0.10105113]
[1734444939888,0.57760141,107500.0,107490.0,0.046518]
[1734444940881,0.62411441,107500.0,107490.0,0.046518]
[1734444942193,0.26331441,107500.0,107490.0,0.046518]
[1734444943083,0.62411441,107500.0,107490.0,0.046518]
[1734444944194,0.21680141,107500.0,107490.0,0.046518]
[1734444944593,0.57760141,107500.0,107490.0,0.046518]
[1734444945492,0.21680141,107500.0,107490.0,0.046518]
[1734444945792,0.16226828,107500.0,107490.0,0.10105113]
[1734444946189,0.16226828,107500.0,107490.0,0.16765113]
[1734444946780,0.16226828,107500.0,107490.0,0.113118]
[1734444947389,0.21680141,107500.0,107490.0,0.113118]
[1734444952403,0.21680141,107500.0,107490.0,0.046518]
[1734444956303,0.16226828,107500.0,107490.0,0.046518]
[1734444956797,0.16226828,107500.0,107490.0,0.10105113]
[1734444957204,0.3778234,107510.0,107500.0,0.046513]
[1734444957501,0.3608,107510.0,107500.0,0.10104613]
[1734444957696,0.4227,107520.0,107510.0,0.046509]
[1734444957900,0.0619,107520.0,107510.0,0.46184213]
[1734444958104,0.066,107530.0,107510.0,0.46184213]
[1734444958305,0.06607739,107530.0,107520.0,0.46192425]
[1734444958598,0.0619,107540.0,107520.0,0.51645738]
[1734444958792,0.0619,107540.0,107530.0,0.46183313]
[1734444959195,0.44236423,107560.0,107540.0,0.046496]
[1734444959405,0.44236423,107560.0,107550.0,0.046492]
[1734444959406,0.13609736,107560.0,107550.0,0.046492]
[1734444959593,0.13619886,107560.0,107550.0,0.046492]
[1734444959989,0.16464451,107560.0,107550.0,0.046492]
[1734444960796,0.57193251,107560.0,107550.0,0.046492]
[1734444961198,0.21113251,107560.0,107550.0,0.046492]
[1734444961609,0.57193251,107560.0,107550.0,0.046492]
[1734444963401,0.046493,107550.0,107540.0,0.046495]
[1734444963602,0.046498,107540.0,107530.0,0.0465]
[1734444963808,0.49027678,107540.0,107530.0,0.0465]
[1734444964604,0.0465,107530.0,107520.0,0.04658912]
[1734444964799,0.31967878,107530.0,107520.0,0.04658912]
[1734444965203,0.27317878,107530.0,107520.0,0.04658912]
[1734444965603,0.1285,107530.0,107520.0,0.04658912]
[1734444965906,0.1285,107530.0,107520.0,0.40738912]
[1734444966102,0.0621,107530.0,107520.0,0.4903679]
[1734444966301,0.1314,107550.0,107540.0,0.046496]
[1734444966508,0.68507078,107550.0,107540.0,0.046496]
[1734444969200,0.4242,107550.0,107540.0,0.046496]
[1734444970297,0.0634,107550.0,107540.0,0.046496]
[1734444970500,0.14637878,107550.0,107540.0,0.046496]
[1734444970696,0.50717878,107550.0,107540.0,0.046496]
[1734444972307,0.55367078,107550.0,107540.0,0.046496]
[1734444973110,0.50717878,107550.0,107540.0,0.046496]
[1734444973612,0.4242,107550.0,107540.0,0.046496]
[1734444974314,0.0634,107550.0,107540.0,0.046496]
[1734444974809,0.51158028,107560.0,107540.0,0.046496]
[1734444975027,0.0678015,107560.0,107550.0,0.046492]
[1734444975204,0.4286015,107560.0,107550.0,0.046492]
[1734444975713,0.0678015,107560.0,107550.0,0.046492]
[1734444976906,0.0001015,107560.0,107550.0,0.046492]
[1734444977722,0.3609015,107560.0,107550.0,0.046492]
[1734444978614,0.49036828,107560.0,107550.0,0.046492]
[1734444979706,0.046494,107550.0,107540.0,0.046495]
[1734444979915,0.538094,107550.0,107540.0,0.046495]
[1734444980113,0.4916,107550.0,107540.0,0.046495]
[1734444980616,0.1308,107550.0,107540.0,0.046495]
[1734444980806,0.0655,107550.0,107540.0,0.046495]
[1734444981320,0.4263,107550.0,107540.0,0.12947378]
[1734444983114,0.4263,107550.0,107540.0,0.046495]
[1734444984617,0.55577078,107550.0,107540.0,0.046495]
[1734444984823,0.62027078,107550.0,107540.0,0.046495]
[1734444987017,0.537292,107550.0,107540.0,0.046495]
[1734444987614,0.537292,107550.0,107520.0,0.1295659]
[1734444987810,0.537292,107550.0,107530.0,0.046499]
[1734444987811,0.471097,107540.0,107530.0,0.046499]
[1734444988727,0.0465,107530.0,107520.0,0.04659012]
[1734444988908,0.5369,107530.0,107520.0,0.04659012]
[1734444989619,0.4268,107530.0,107520.0,0.04659012]
[1734444990013,0.4268,107530.0,107520.0,0.1295689]
[1734444990420,0.3608,107530.0,107520.0,0.1295689]
[1734444991221,0.4246,107540.0,107520.0,0.1295689]
[1734444991418,0.4246,107540.0,107530.0,0.0465]
[1734444992924,0.4246,107540.0,107530.0,0.12947878]
[1734444994626,0.4246,107540.0,107530.0,0.0465]
[1734444995826,0.55407478,107540.0,107530.0,0.0465]
[1734444996017,0.537896,107540.0,107530.0,0.0465]
[1734444998422,0.62087478,107540.0,107530.0,0.0465]
[1734444998618,0.0465,107530.0,107520.0,0.04658912]
[1734444998924,0.4714,107530.0,107520.0,0.04658912]